lending/lending_fUSD_20250131
["ID","MTS","AMOUNT","RATE_DAILY","PERIOD"]
[351110729,1738341043943,-500.0,0.00016438,2]
[351110731,1738341043952,-500.0,0.00016438,2]
[351110733,1738341043962,-500.0,0.00016438,2]
[351110735,1738341043971,-1000.0,0.00016438,2]
[351110737,1738341043980,-2718.72,0.00016438,2]
[351110739,1738341043989,-526.87231888,0.00016438,2]
[351110741,1738341043999,-500.0,0.00016438,2]
[351110742,1738341044008,-500.0,0.00016438,2]
[351110744,1738341044018,-801.3,0.00016438,2]
[351110746,1738341044027,-829.69,0.00016438,2]
[351110747,1738341044036,-500.0,0.00016438,2]
[351110749,1738341044047,-772.91,0.00016438,2]
[351110751,1738341044056,-1816.05,0.00016438,2]
[351110753,1738341044066,-500.0,0.00016438,2]
[351110755,1738341044074,-500.0,0.00016438,2]
[351110757,1738341044084,-3144.59,0.00016438,2]
[351110759,1738341044093,-739.88,0.00016438,2]
[351110761,1738341044104,-1700.56,0.00016438,2]
[351110763,1738341044114,-500.0,0.00016438,2]
[351110765,1738341044123,-792.37,0.00016438,2]
[351110767,1738341044131,-500.0,0.00016438,2]
[351110769,1738341044141,-391.07909848,0.00016438,2]
[351110770,1738341044150,-500.0,0.00016438,2]
[351110772,1738341044160,-1061.53,0.00016438,2]
[351110774,1738341044168,-500.0,0.00016438,2]
[351110776,1738341044181,-500.0,0.00016438,2]
[351110778,1738341044190,-500.0,0.00016438,2]
[351110780,1738341044200,-500.0,0.00016438,2]
[351110782,1738341044210,-500.0,0.00016438,2]
[351110784,1738341044219,-1523.6,0.00016438,2]
[351110786,1738341044228,-500.0,0.00016438,2]
[351110788,1738341044238,-500.0,0.00016438,2]
[351110790,1738341044247,-500.0,0.00016438,2]
[351110792,1738341044257,-1465.76,0.00016438,2]
[351110794,1738341044267,-510.62,0.00016438,2]
[351110796,1738341044276,-374.50473567,0.00016438,2]
[351110798,1738341044285,-521.44495163,0.00016438,2]
[351110800,1738341044294,-500.0,0.00016438,2]
[351110802,1738341044304,-500.0,0.00016438,2]
[351110804,1738341044313,-243.02410698,0.00016438,2]
[351110806,1738341044322,-3321.25698798,0.00016486,2]
[351110807,1738341044331,-500.0,0.00016574,2]
[351110809,1738341044340,-478.881185,0.00016574,2]
[351110811,1738341044349,-500.0,0.00016574,2]
[351110813,1738341044358,-500.0,0.00016574,2]
[351110815,1738341044368,-500.0,0.00016574,2]
[351110817,1738341044378,-500.0,0.00016574,2]
[351110819,1738341044387,-500.0,0.00016574,2]
[351110821,1738341044396,-500.0,0.00016574,2]
[351110823,1738341044405,-500.0,0.00016574,2]
[351110825,1738341044415,-500.0,0.00016574,2]
[351110827,1738341044424,-500.0,0.00016574,2]
[351110829,1738341044434,-501.79703619,0.00016574,2]
[351110831,1738341044443,-500.0,0.00016574,2]
[351110833,1738341044452,-500.0,0.00016574,2]
[351110835,1738341044461,-500.0,0.00016574,2]
[351110837,1738341044470,-500.0,0.00016574,2]
[351110839,1738341044480,-500.0,0.00016574,2]
[351110841,1738341044490,-500.0,0.00016574,2]
[351110843,1738341044499,-500.0,0.00016574,2]
[351110845,1738341044508,-500.0,0.00016574,2]
[351110847,1738341044517,-500.0,0.00016574,2]
[351110849,1738341044526,-500.0,0.00016574,2]
[351110851,1738341044536,-630.50947628,0.00016574,2]
[351110853,1738341044545,-500.0,0.00016574,2]
[351110855,1738341044554,-500.0,0.00016574,2]
[351110857,1738341044564,-500.0,0.00016574,2]
[351110859,1738341044573,-500.0,0.00016574,2]
[351110861,1738341044582,-500.0,0.00016574,2]
[351110863,1738341044591,-500.0,0.00016574,2]
[351110865,1738341044599,-500.0,0.00016574,2]
[351110867,1738341044608,-500.0,0.00016574,2]
[351110869,1738341044618,-500.0,0.00016574,2]
[351110871,1738341044627,-500.0,0.00016574,2]
[351110873,1738341044636,-396.11451469,0.00016574,2]
[351110875,1738341044646,-500.0,0.00016574,2]
[351110876,1738341044655,-500.0,0.00016574,2]
[351110878,1738341044664,-500.0,0.00016574,2]
[351110880,1738341044673,-500.0,0.00016574,2]
[351110882,1738341044682,-500.0,0.00016574,2]
[351110884,1738341044691,-500.0,0.00016574,2]
[351110886,1738341044700,-500.0,0.00016574,2]
[351110888,1738341044709,-500.0,0.00016574,2]
[351110890,1738341044719,-500.0,0.00016574,2]
[351110892,1738341044728,-501.59785324,0.00016574,2]
[351110894,1738341044737,-502.6725209,0.00016574,2]
[351110896,1738341044746,-542.68910598,0.00016574,2]
[351110898,1738341044755,-500.0,0.00016574,2]
[351110900,1738341044764,-500.0,0.00016574,2]
[351110902,1738341044773,-500.0,0.00016574,2]
[351110904,1738341044782,-501.79520934,0.00016574,2]
[351110906,1738341044792,-500.0,0.00016574,2]
[351110908,1738341044801,-500.0,0.00016574,2]
[351110910,1738341044811,-500.0,0.00016574,2]
[351110912,1738341044820,-500.0,0.00016574,2]
[351110914,1738341044829,-500.0,0.00016574,2]
[351110915,1738341044838,-504.84055074,0.00016574,2]
[351110916,1738341044847,-500.0,0.00016574,2]
[351110917,1738341044856,-500.0,0.00016574,2]
[351110918,1738341044865,-500.0,0.00016574,2]
[351110919,1738341044874,-500.0,0.00016574,2]
[351110920,1738341044883,-500.0,0.00016574,2]
[351110921,1738341044892,-500.0,0.00016574,2]
[351110922,1738341044901,-500.0,0.00016574,2]
[351110923,1738341044910,-500.0,0.00016574,2]
[351110924,1738341044919,-500.0,0.00016574,2]
[351110926,1738341044928,-500.0,0.00016574,2]
[351110927,1738341044938,-500.0,0.00016574,2]
[351110929,1738341044947,-500.0,0.00016574,2]
[351110931,1738341044956,-500.0,0.00016574,2]
[351110933,1738341044966,-500.0,0.00016574,2]
[351110935,1738341044976,-500.0,0.00016574,2]
[351110937,1738341044985,-500.0,0.00016574,2]
[351110939,1738341044995,-500.0,0.00016574,2]
[351110941,1738341045004,-500.0,0.00016574,2]
[351110943,1738341045013,-500.0,0.00016574,2]
[351110945,1738341045023,-500.0,0.00016574,2]
[351110947,1738341045033,-500.0,0.00016574,2]
[351110949,1738341045043,-500.0,0.00016574,2]
[351110951,1738341045053,-500.0,0.00016574,2]
[351110954,1738341045063,-500.0,0.00016574,2]
[351110956,1738341045072,-500.0,0.00016574,2]
[351110958,1738341045082,-500.0,0.00016574,2]
[351110960,1738341045092,-500.0,0.00016574,2]
[351110962,1738341045104,-500.0,0.00016574,2]
[351110964,1738341045114,-500.0,0.00016574,2]
[351110966,1738341045123,-500.0,0.00016574,2]
[351110968,1738341045132,-500.0,0.00016574,2]
[351110970,1738341045143,-500.0,0.00016574,2]
[351110972,1738341045152,-500.0,0.00016574,2]
[351110974,1738341045161,-500.0,0.00016574,2]
[351110976,1738341045171,-505.41451685,0.00016574,2]
[351110978,1738341045180,-502.79902643,0.00016574,2]
[351110980,1738341045190,-505.78891975,0.00016574,2]
[351110982,1738341045200,-500.0,0.00016574,2]
[351110984,1738341045209,-508.56917387,0.00016574,2]
[351110986,1738341045219,-500.0,0.00016574,2]
[351110988,1738341045228,-503.50955423,0.00016574,2]
[351110990,1738341045239,-502.36773505,0.00016574,2]
[351110992,1738341045249,-500.0,0.00016574,2]
[351110994,1738341045258,-500.0,0.00016574,2]
[351110997,1738341045267,-500.0,0.00016574,2]
[351111000,1738341045276,-500.0,0.00016574,2]
[351111002,1738341045286,-501.58813327,0.00016574,2]
[351111004,1738341045295,-500.0,0.00016574,2]
[351111006,1738341045304,-500.0,0.00016574,2]
[351111008,1738341045313,-507.30076674,0.00016574,2]
[351111010,1738341045322,-500.0,0.00016574,2]
[351111013,1738341045331,-500.0,0.00016574,2]
[351111016,1738341045340,-500.0,0.00016574,2]
[351111019,1738341045350,-603.41,0.00016574,2]
[351111022,1738341045359,-500.0,0.00016574,2]
[351111025,1738341045368,-500.0,0.00016574,2]
[351111028,1738341045378,-500.0,0.00016574,2]
[351111031,1738341045388,-500.0,0.00016574,2]
[351111035,1738341045398,-500.0,0.00016574,2]
[351111038,1738341045407,-509.18016791,0.00016574,2]
[351111042,1738341045417,-500.0,0.00016574,2]
[351111045,1738341045426,-500.0,0.00016574,2]
[351111049,1738341045435,-500.0,0.00016574,2]
[351111052,1738341045444,-501.71441653,0.00016574,2]
[351111056,1738341045453,-341.96981622,0.00016574,2]
[351111059,1738341045463,-500.0,0.00016574,2]
[351111061,1738341045471,-500.0,0.00016574,2]
[351111063,1738341045481,-244.29631066,0.00016574,2]
[351111065,1738341045491,-500.0,0.00016574,2]
[351111067,1738341045500,-500.0,0.00016574,2]
[351111069,1738341045510,-508.26215518,0.00016574,2]
[351111071,1738341045519,-597.55,0.00016574,2]
[351111073,1738341045528,-500.0,0.00016574,2]
[351111076,1738341045539,-500.0,0.00016574,2]
[351111078,1738341045549,-500.0,0.00016574,2]
[351111080,1738341045558,-609.004827,0.00016574,2]
[351111082,1738341045567,-500.0,0.00016574,2]
[351111084,1738341045576,-500.0,0.00016574,2]
[351111086,1738341045585,-500.0,0.00016574,2]
[351111088,1738341045595,-500.0,0.00016574,2]
[351111090,1738341045604,-500.0,0.00016574,2]
[351111092,1738341045613,-500.0,0.00016574,2]
[351111094,1738341045622,-500.0,0.00016574,2]
[351111096,1738341045631,-500.0,0.00016574,2]
[351111098,1738341045640,-500.0,0.00016574,2]
[351111100,1738341045649,-884.12,0.00016574,2]
[351111102,1738341045658,-500.0,0.00016574,2]
[351111104,1738341045667,-561.30267476,0.00016574,2]
[351111106,1738341045677,-500.0,0.00016574,2]
[351111108,1738341045687,-500.0,0.00016574,2]
[351111110,1738341045696,-500.0,0.00016574,2]
[351111112,1738341045705,-500.0,0.00016574,2]
[351111114,1738341045713,-500.0,0.00016574,2]
[351111116,1738341045723,-500.0,0.00016574,2]
[351111117,1738341045732,-500.0,0.00016574,2]
[351111120,1738341045742,-512.06,0.00016574,2]
[351111122,1738341045751,-502.21945335,0.00016574,2]
[351111123,1738341045760,-500.0,0.00016574,2]
[351111125,1738341045777,-500.0,0.00016574,2]
[351111128,1738341045799,-500.0,0.00016574,2]
[351111129,1738341045819,-500.0,0.00016574,2]
[351111132,1738341045842,-500.0,0.00016574,2]
[351111133,1738341045863,-500.0,0.00016574,2]
[351111136,1738341045884,-500.0,0.00016574,2]
[351111138,1738341045905,-500.0,0.00016574,2]
[351111140,1738341045928,-500.0,0.00016574,2]
[351111142,1738341045949,-500.0,0.00016574,2]
[351111144,1738341045971,-501.02039354,0.00016574,2]
[351111146,1738341045994,-500.0,0.00016574,2]
[351111148,1738341046015,-500.0,0.00016574,2]
[351111150,1738341046037,-500.0,0.00016574,2]
[351111152,1738341046047,-500.0,0.00016574,2]
[351111154,1738341046056,-500.0,0.00016574,2]
[351111156,1738341046065,-500.0,0.00016574,2]
[351111158,1738341046075,-500.0,0.00016574,2]
[351111160,1738341046084,-500.0,0.00016574,2]
[351111162,1738341046094,-302.13695653,0.00016574,2]
[351111164,1738341046105,-288.04658671,0.00016574,2]
[351111165,1738341046115,-500.0,0.00016574,2]
[351111167,1738341046124,-500.0,0.00016574,2]
[351111170,1738341046134,-500.0,0.00016574,2]
[351111172,1738341046144,-500.0,0.00016574,2]
[351111174,1738341046154,-500.0,0.00016574,2]
[351111176,1738341046163,-646.47674387,0.00016574,2]
[351111177,1738341046172,-500.0,0.00016574,2]
[351111179,1738341046181,-944.35,0.00016574,2]
[351111182,1738341046193,-629.53,0.00016574,2]
[351111189,1738341046203,-5057.62,0.00016574,2]
[351111191,1738341046267,-500.0,0.00016574,2]
[351111193,1738341046276,-500.0,0.00016574,2]
[351111196,1738341046286,-500.0,0.00016574,2]
[351111197,1738341046295,-500.0,0.00016574,2]
[351111199,1738341046305,-1799.0,0.00016574,2]
[351111202,1738341046314,-500.0,0.00016574,2]
[351111204,1738341046323,-500.0,0.00016574,2]
[351111205,1738341046332,-500.0,0.00016574,2]
[351111207,1738341046341,-382.95232958,0.00016574,2]
[351111209,1738341046350,-2051.65,0.00016574,2]
[351111211,1738341046358,-653.9,0.00016574,2]
[351111213,1738341046367,-500.0,0.00016574,2]
[351111215,1738341046377,-500.0,0.00016574,2]
[351111217,1738341046386,-1491.57,0.00016574,2]
[351111219,1738341046396,-500.0,0.00016574,2]
[351111221,1738341046405,-500.0,0.00016574,2]
[351111223,1738341046414,-500.0,0.00016574,2]
[351111225,1738341046423,-500.0,0.00016574,2]
[351111227,1738341046432,-1456.72,0.00016574,2]
[351111229,1738341046441,-500.0,0.00016574,2]
[351111231,1738341046450,-500.0,0.00016574,2]
[351111233,1738341046459,-500.0,0.00016574,2]
[351111235,1738341046468,-500.0,0.00016574,2]
[351111237,1738341046477,-505.6929089,0.00016574,2]
[351111239,1738341046486,-500.0,0.00016574,2]
[351111241,1738341046496,-500.0,0.00016574,2]
[351111243,1738341046506,-500.0,0.00016574,2]
[351111244,1738341046514,-2547.21,0.00016574,2]
[351111245,1738341046523,-500.0,0.00016574,2]
[351111246,1738341046533,-500.0,0.00016574,2]
[351111247,1738341046541,-500.0,0.00016574,2]
[351111248,1738341046550,-1337.05,0.00016574,2]
[351111249,1738341046563,-500.0,0.00016574,2]
[351111250,1738341046574,-500.0,0.00016574,2]
[351111251,1738341046590,-500.0,0.00016574,2]
[351111252,1738341046600,-500.0,0.00016574,2]
[351111253,1738341046610,-500.0,0.00016574,2]
[351111254,1738341046619,-500.0,0.00016574,2]
[351111255,1738341046629,-500.0,0.00016574,2]
[351111256,1738341046639,-500.0,0.00016574,2]
[351111257,1738341046648,-500.0,0.00016574,2]
[351111258,1738341046657,-500.0,0.00016574,2]
[351111259,1738341046666,-1231.01,0.00016574,2]
[351111260,1738341046676,-500.0,0.00016574,2]
[351111261,1738341046685,-500.0,0.00016574,2]
[351111262,1738341046695,-500.0,0.00016574,2]
[351111263,1738341046704,-501.42199826,0.00016574,2]
[351111264,1738341046713,-1032.86,0.00016574,2]
[351111265,1738341046722,-500.0,0.00016574,2]
[351111266,1738341046731,-500.0,0.00016574,2]
[351111267,1738341046742,-619.44,0.00016574,2]
[351111268,1738341046751,-505.30378511,0.00016574,2]
[351111269,1738341046760,-500.0,0.00016574,2]
[351111270,1738341046769,-500.0,0.00016574,2]
[351111271,1738341046778,-500.0,0.00016574,2]
[351111272,1738341046787,-500.0,0.00016574,2]
[351111273,1738341046797,-1401.58,0.00016574,2]
[351111275,1738341046805,-500.0,0.00016574,2]
[351111277,1738341046815,-748.7,0.00016574,2]
[351111279,1738341046824,-508.46397681,0.00016574,2]
[351111281,1738341046835,-500.0,0.00016574,2]
[351111283,1738341046847,-686.88,0.00016574,2]
[351111285,1738341046857,-500.0,0.00016574,2]
[351111287,1738341046867,-500.0,0.00016574,2]
[351111289,1738341046877,-500.0,0.00016574,2]
[351111291,1738341046886,-500.0,0.00016574,2]
[351111293,1738341046896,-500.0,0.00016575,2]
[351111295,1738341046905,-500.0,0.00016575,2]
[351111297,1738341046914,-500.0,0.00016575,2]
[351111299,1738341046923,-500.0,0.00016575,2]
[351111301,1738341046932,-500.0,0.00016575,2]
[351111303,1738341046941,-500.0,0.00016575,2]
[351111305,1738341046950,-604.68903534,0.00016575,2]
[351111307,1738341046959,-501.03925351,0.00016575,2]
[351111309,1738341046968,-500.0,0.00016575,2]
[351111311,1738341046977,-395.55024397,0.00016575,2]
[351111313,1738341046987,-500.0,0.00016575,2]
[351111315,1738341046996,-500.0,0.00016575,2]
[351111317,1738341047006,-167.48776514,0.00016575,2]
[351111319,1738341047015,-500.0,0.00016575,2]
[351111321,1738341047024,-500.0,0.00016575,2]
[351111323,1738341047033,-696.02,0.00016575,2]
[351111325,1738341047043,-500.0,0.00016575,2]
[351111327,1738341047051,-500.0,0.00016575,2]
[351111329,1738341047060,-508.72552181,0.00016575,2]
[351111331,1738341047075,-300.0,0.00016575,2]
[351111333,1738341047084,-500.0,0.00016575,2]
[351111335,1738341047093,-494.84326508,0.00016575,2]
[351111337,1738341047105,-500.0,0.00016575,2]
[351111339,1738341047114,-500.0,0.00016575,2]
[351111340,1738341047123,-500.0,0.00016575,2]
[351111342,1738341047132,-500.0,0.00016575,2]
[351111344,1738341047143,-500.0,0.00016575,2]
[351111346,1738341047152,-500.0,0.00016575,2]
[351111348,1738341047161,-500.0,0.00016575,2]
[351111350,1738341047170,-500.0,0.00016575,2]
[351111353,1738341047180,-500.0,0.00016575,2]
[351111354,1738341047189,-500.0,0.00016575,2]
[351111356,1738341047199,-500.0,0.00016575,2]
[351111358,1738341047208,-500.0,0.00016575,2]
[351111360,1738341047217,-505.85016183,0.00016575,2]
[351111362,1738341047226,-500.0,0.00016575,2]
[351111364,1738341047235,-500.0,0.00016575,2]
[351111366,1738341047244,-500.0,0.00016575,2]
[351111368,1738341047253,-504.533281,0.00016575,2]
[351111370,1738341047262,-258.33259231,0.00016575,2]
[351111372,1738341047271,-500.0,0.00016575,2]
[351111375,1738341047281,-500.0,0.00016575,2]
[351111376,1738341047290,-517.02148985,0.00016575,2]
[351111378,1738341047299,-500.0,0.00016575,2]
[351111380,1738341047308,-419.4665306,0.00016575,2]
[351111382,1738341047317,-500.0,0.00016575,2]
[351111384,1738341047326,-500.0,0.00016575,2]
[351111386,1738341047340,-500.0,0.00016575,2]
[351111388,1738341047354,-500.0,0.00016575,2]
[351111391,1738341047371,-500.0,0.00016575,2]
[351111392,1738341047389,-500.0,0.00016575,2]
[351111394,1738341047408,-500.0,0.00016575,2]
[351111396,1738341047427,-807.19,0.00016575,2]
[351111398,1738341047443,-500.0,0.00016575,2]
[351111400,1738341047456,-275.34112611,0.00016575,2]
[351111402,1738341047469,-878.38,0.00016575,2]
[351111404,1738341047482,-500.0,0.00016575,2]
[351111406,1738341047495,-744.05,0.00016575,2]
[351111409,1738341047513,-763.13,0.00016575,2]
[351111411,1738341047527,-500.0,0.00016575,2]
[351111413,1738341047541,-500.0,0.00016575,2]
[351111414,1738341047553,-897.46,0.00016575,2]
[351111416,1738341047567,-500.0,0.00016575,2]
[351111418,1738341047580,-837.02,0.00016575,2]
[351111420,1738341047598,-948.39,0.00016575,2]
[351111422,1738341047617,-877.11,0.00016575,2]
[351111424,1738341047635,-500.0,0.00016575,2]
[351111426,1738341047653,-500.0,0.00016575,2]
[351111428,1738341047662,-500.0,0.00016575,2]
[351111430,1738341047671,-500.0,0.00016575,2]
[351111432,1738341047680,-689.01,0.00016575,2]
[351111434,1738341047690,-1032.65,0.00016575,2]
[351111436,1738341047699,-500.0,0.00016575,2]
[351111438,1738341047708,-500.0,0.00016575,2]
[351111440,1738341047717,-852.88,0.00016575,2]
[351111442,1738341047726,-500.0,0.00016575,2]
[351111444,1738341047735,-773.05,0.00016575,2]
[351111446,1738341047744,-500.0,0.00016575,2]
[351111448,1738341047753,-500.0,0.00016575,2]
[351111450,1738341047761,-412.56397371,0.00016575,2]
[351111452,1738341047772,-500.0,0.00016575,2]
[351111454,1738341047781,-500.0,0.00016575,2]
[351111456,1738341047790,-500.0,0.00016575,2]
[351111458,1738341047799,-500.0,0.00016575,2]
[351111460,1738341047808,-500.0,0.00016575,2]
[351111462,1738341047817,-500.0,0.00016575,2]
[351111464,1738341047826,-500.0,0.00016575,2]
[351111465,1738341047834,-500.0,0.00016575,2]
[351111468,1738341047843,-500.0,0.00016575,2]
[351111469,1738341047852,-500.0,0.00016575,2]
[351111471,1738341047861,-510.09309352,0.00016575,2]
[351111473,1738341047870,-635.49,0.00016575,2]
[351111475,1738341047880,-500.0,0.00016575,2]
[351111477,1738341047889,-500.0,0.00016575,2]
[351111479,1738341047897,-532.73,0.00016575,2]
[351111481,1738341047907,-705.95,0.00016575,2]
[351111483,1738341047916,-500.0,0.00016575,2]
[351111485,1738341047935,-772.77,0.00016575,2]
[351111487,1738341047944,-500.0,0.00016575,2]
[351111489,1738341047953,-1034.95,0.00016575,2]
[351111491,1738341047963,-554.4,0.00016575,2]
[351111493,1738341047972,-500.0,0.00016575,2]
[351111495,1738341047981,-500.0,0.00016575,2]
[351111497,1738341047990,-507.59232478,0.00016575,2]
[351111499,1738341048000,-507.87279648,0.00016575,2]
[351111501,1738341048009,-500.0,0.00016575,2]
[351111503,1738341048018,-500.0,0.00016575,2]
[351111505,1738341048027,-500.0,0.00016575,2]
[351111507,1738341048037,-888.61,0.00016575,2]
[351111509,1738341048046,-500.0,0.00016575,2]
[351111511,1738341048055,-500.0,0.00016575,2]
[351111513,1738341048064,-500.0,0.00016575,2]
[351111515,1738341048074,-500.0,0.00016575,2]
[351111517,1738341048084,-382.1473328,0.00016575,2]
[351111519,1738341048093,-397.79441416,0.00016575,2]
[351111521,1738341048107,-500.0,0.00016575,2]
[351111523,1738341048116,-1326.22,0.00016575,2]
[351111525,1738341048125,-500.0,0.00016575,2]
[351111527,1738341048134,-500.0,0.00016575,2]
[351111529,1738341048145,-500.0,0.00016575,2]
[351111531,1738341048154,-818.24,0.00016575,2]
[351111533,1738341048164,-567.31,0.00016575,2]
[351111535,1738341048173,-500.0,0.00016575,2]
[351111537,1738341048183,-500.0,0.00016575,2]
[351111539,1738341048193,-500.0,0.00016575,2]
[351111541,1738341048202,-500.0,0.00016575,2]
[351111543,1738341048211,-664.71,0.00016575,2]
[351111545,1738341048220,-500.0,0.00016575,2]
[351111547,1738341048229,-558.6,0.00016575,2]
[351111549,1738341048238,-1301.36,0.00016575,2]
[351111551,1738341048247,-500.0,0.00016575,2]
[351111552,1738341048255,-1044.43,0.00016575,2]
[351111553,1738341048264,-630.26,0.00016575,2]
[351111554,1738341048273,-500.0,0.00016575,2]
[351111555,1738341048282,-926.89,0.00016575,2]
[351111556,1738341048291,-500.0,0.00016575,2]
[351111557,1738341048300,-858.17,0.00016575,2]
[351111558,1738341048309,-500.0,0.00016575,2]
[351111559,1738341048317,-500.0,0.00016575,2]
[351111561,1738341048326,-500.0,0.00016575,2]
[351111562,1738341048335,-509.55,0.00016575,2]
[351111564,1738341048344,-600.91,0.00016575,2]
[351111566,1738341048353,-500.0,0.00016575,2]
[351111568,1738341048362,-500.0,0.00016575,2]
[351111570,1738341048371,-552.47,0.00016575,2]
[351111572,1738341048380,-4534.50499999,0.00016575,2]
[351111574,1738341048389,-500.0,0.00016575,2]
[351111576,1738341048398,-1226.94,0.00016575,2]
[351111578,1738341048407,-500.0,0.00016575,2]
[351111580,1738341048416,-500.0,0.00016575,2]
[351111582,1738341048425,-500.0,0.00016575,2]
[351111584,1738341048434,-661.6,0.00016575,2]
[351111586,1738341048446,-500.0,0.00016575,2]
[351111588,1738341048463,-848.03,0.00016575,2]
[351111590,1738341048474,-849.19,0.00016575,2]
[351111592,1738341048487,-477.6366143,0.00016575,2]
[351111594,1738341048507,-855.59,0.00016575,2]
[351111596,1738341048518,-500.0,0.00016575,2]
[351111598,1738341048528,-500.0,0.00016575,2]
[351111600,1738341048537,-567.99,0.00016575,2]
[351111602,1738341048546,-534.04,0.00016575,2]
[351111604,1738341048555,-590.43,0.00016575,2]
[351111606,1738341048564,-1346.55,0.00016575,2]
[351111608,1738341048573,-500.0,0.00016575,2]
[351111610,1738341048582,-500.0,0.00016575,2]
[351111612,1738341048591,-598.941275,0.00016575,2]
[351111614,1738341048600,-500.0,0.00016575,2]
[351111616,1738341048609,-1056.37,0.00016575,2]
[351111618,1738341048618,-500.0,0.00016575,2]
[351111619,1738341048627,-507.33283432,0.00016575,2]
[351111621,1738341048637,-1175.25,0.00016575,2]
[351111623,1738341048646,-500.0,0.00016575,2]
[351111625,1738341048655,-926.27,0.00016575,2]
[351111627,1738341048664,-591.3,0.00016575,2]
[351111629,1738341048674,-665.969156,0.00016575,2]
[351111631,1738341048683,-500.0,0.00016575,2]
[351111633,1738341048692,-575.49276664,0.00016575,2]
[351111636,1738341048701,-633.92,0.00016575,2]
[351111638,1738341048711,-500.0,0.00016575,2]
[351111639,1738341048720,-500.0,0.00016575,2]
[351111641,1738341048729,-797.31,0.00016575,2]
[351111643,1738341048739,-500.0,0.00016575,2]
[351111646,1738341048748,-695.76,0.00016575,2]
[351111647,1738341048758,-507.9,0.00016575,2]
[351111649,1738341048767,-500.0,0.00016575,2]
[351111651,1738341048776,-500.0,0.00016575,2]
[351111654,1738341048786,-500.0,0.00016575,2]
[351111655,1738341048795,-511.82,0.00016575,2]
[351111657,1738341048804,-500.0,0.00016575,2]
[351111659,1738341048814,-500.0,0.00016575,2]
[351111661,1738341048823,-267.26420666,0.00016575,2]
[351111663,1738341048832,-500.0,0.00016575,2]
[351111665,1738341048842,-540.75,0.00016575,2]
[351111667,1738341048851,-500.0,0.00016575,2]
[351111669,1738341048860,-500.0,0.00016575,2]
[351111671,1738341048869,-500.0,0.00016575,2]
[351111673,1738341048878,-960.56,0.00016575,2]
[351111675,1738341048887,-500.0,0.00016575,2]
[351111677,1738341048897,-500.0,0.00016575,2]
[351111679,1738341048906,-559.66,0.00016575,2]
[351111681,1738341048915,-500.0,0.00016575,2]
[351111683,1738341048925,-500.0,0.00016575,2]
[351111685,1738341048939,-805.14,0.00016575,2]
[351111687,1738341048949,-1047.2,0.00016575,2]
[351111689,1738341048958,-500.0,0.00016575,2]
[351111691,1738341048967,-1111.16,0.00016575,2]
[351111693,1738341048977,-500.0,0.00016575,2]
[351111695,1738341048989,-500.0,0.00016575,2]
[351111697,1738341048998,-500.0,0.00016575,2]